[Event "Titled Tuesday Blitz October 31 Early 2023"]
[White "Todorovic, Bojan"]
[Black "Ferrufino, Boris"]
[WhiteFideId "917087"]
[BlackFideId "3300170"]
[WhiteElo "2420"]
[BlackElo "2166"]
[Result "1/2-1/2"]
[Round "5"]
[TimeControl "180+1"]
[Date "2023.10.31"]
[WhiteClock "0:00:04"]
[BlackClock "0:01:26"]
[Board "170"]

1. Nf3 {[%clk 0:02:58]}  c5 {[%clk 0:02:58]} 2. g3 {[%clk 0:02:56]}  Nc6 {[%clk 0:02:58]} 3. Bg2 {[%clk 0:02:55]}  e5 {[%clk 0:02:57]} 4. d3 {[%clk 0:02:54]}  g6 {[%clk 0:02:57]} 5. O-O {[%clk 0:02:53]}  Bg7 {[%clk 0:02:57]} 6. c4 {[%clk 0:02:52]}  Nge7 {[%clk 0:02:57]} 7. Nc3 {[%clk 0:02:52]}  d6 {[%clk 0:02:57]} 8. Bd2 {[%clk 0:02:48]}  O-O {[%clk 0:02:56]} 9. a3 {[%clk 0:02:47]}  a5 {[%clk 0:02:56]} 10. Rb1 {[%clk 0:02:41]}  h6 {[%clk 0:02:56]} 11. Na4 {[%clk 0:02:35]}  Be6 {[%clk 0:02:53]} 12. Ne1 {[%clk 0:02:13]}  b6 {[%clk 0:02:49]} 13. Nc2 {[%clk 0:02:07]}  d5 {[%clk 0:02:48]} 14. Ne3 {[%clk 0:02:03]}  Rb8 {[%clk 0:02:44]} 15. cxd5 {[%clk 0:01:54]}  Nxd5 {[%clk 0:02:44]} 16. Nxd5 {[%clk 0:01:51]}  Bxd5 {[%clk 0:02:45]} 17. Bxd5 {[%clk 0:01:49]}  Qxd5 {[%clk 0:02:46]} 18. b4 {[%clk 0:01:40]}  axb4 {[%clk 0:02:44]} 19. axb4 {[%clk 0:01:39]}  Nd4 {[%clk 0:02:22]} 20. Nc3 {[%clk 0:01:34]}  Qe6 {[%clk 0:02:10]} 21. e3 {[%clk 0:01:22]}  Nc6 {[%clk 0:02:09]} 22. bxc5 {[%clk 0:01:20]}  bxc5 {[%clk 0:02:09]} 23. Ne4 {[%clk 0:01:14]}  Qd5 {[%clk 0:02:07]} 24. Qc2 {[%clk 0:01:12]}  Nb4 {[%clk 0:02:02]} 25. Qxc5 {[%clk 0:01:07]}  Qxd3 {[%clk 0:01:54]} 26. Rxb4 {[%clk 0:00:50]}  Rxb4 {[%clk 0:01:54]} 27. Qxb4 {[%clk 0:00:50]}  Rd8 {[%clk 0:01:49]} 28. Bc3 {[%clk 0:00:45]}  h5 {[%clk 0:01:43]} 29. h4 {[%clk 0:00:30]}  Rc8 {[%clk 0:01:43]} 30. Nd6 {[%clk 0:00:25]}  Rxc3 {[%clk 0:01:39]} 31. Qb8+ {[%clk 0:00:18]}  Bf8 {[%clk 0:01:39]} 32. Ne8 {[%clk 0:00:14]}  Qf5 {[%clk 0:01:35]} 33. Qd8 {[%clk 0:00:10]}  Rc8 {[%clk 0:01:31]} 34. Nf6+ {[%clk 0:00:04]}  Kg7 {[%clk 0:01:32]} 35. Ne8+ {[%clk 0:00:05]}  Kh8 {[%clk 0:01:31]} 36. Qf6+ {[%clk 0:00:04]}  Qxf6 {[%clk 0:01:30]} 37. Nxf6 {[%clk 0:00:04]}  Kg7 {[%clk 0:01:29]} 38. Ne4 {[%clk 0:00:04]}  f5 {[%clk 0:01:28]} 39. Ng5 {[%clk 0:00:04]}  Be7 {[%clk 0:01:25]} 40. Rd1 {[%clk 0:00:03]}  Bxg5 {[%clk 0:01:26]} 41. hxg5 {[%clk 0:00:04]}  Rc7 {[%clk 0:01:25]} 42. Rd6 {[%clk 0:00:03]}  Re7 {[%clk 0:01:24]} 43. Kg2 {[%clk 0:00:03]}  Kf7 {[%clk 0:01:25]} 44. Kf3 {[%clk 0:00:03]}  Re6 {[%clk 0:01:25]} 45. Rd7+ {[%clk 0:00:03]}  Re7 {[%clk 0:01:25]} 46. Rd6 {[%clk 0:00:03]}  Re6 {[%clk 0:01:26]} 47. Rd7+ {[%clk 0:00:04]}  Re7 {[%clk 0:01:26]} 48. Rd6 {[%clk 0:00:04]} 1/2-1/2


[Site "https://www.chess.com"]

[Event "Titled Tuesday Blitz October 31 Early 2023"]
[White "kingapolak"]
[Black "Davidson, Kevin"]
[BlackFideId "2056810"]
[WhiteElo "2161"]
[BlackElo "2405"]
[Result "0-1"]
[Round "5"]
[TimeControl "180+1"]
[Date "2023.10.31"]
[WhiteClock "0:00:03"]
[BlackClock "0:00:08"]
[Board "171"]

1. e4 {[%clk 0:02:58]}  c5 {[%clk 0:02:57]} 2. Nf3 {[%clk 0:02:56]}  d6 {[%clk 0:02:57]} 3. d4 {[%clk 0:02:53]}  cxd4 {[%clk 0:02:58]} 4. Nxd4 {[%clk 0:02:54]}  Nf6 {[%clk 0:02:58]} 5. Nc3 {[%clk 0:02:53]}  a6 {[%clk 0:02:58]} 6. f3 {[%clk 0:02:52]}  e5 {[%clk 0:02:58]} 7. Nb3 {[%clk 0:02:53]}  Be6 {[%clk 0:02:58]} 8. Be3 {[%clk 0:02:50]}  Be7 {[%clk 0:02:58]} 9. Qd2 {[%clk 0:02:47]}  O-O {[%clk 0:02:56]} 10. O-O-O {[%clk 0:02:37]}  Nbd7 {[%clk 0:02:49]} 11. g4 {[%clk 0:02:30]}  b5 {[%clk 0:02:49]} 12. g5 {[%clk 0:02:26]}  b4 {[%clk 0:02:49]} 13. Ne2 {[%clk 0:02:26]}  Ne8 {[%clk 0:02:47]} 14. h4 {[%clk 0:02:23]}  a5 {[%clk 0:02:47]} 15. Kb1 {[%clk 0:02:18]}  Nc7 {[%clk 0:02:35]} 16. Ng3 {[%clk 0:02:14]}  a4 {[%clk 0:02:32]} 17. Nc1 {[%clk 0:02:13]}  d5 {[%clk 0:02:32]} 18. exd5 {[%clk 0:02:02]}  Nxd5 {[%clk 0:02:32]} 19. Ne4 {[%clk 0:01:56]}  Nxe3 {[%clk 0:02:12]} 20. Qxe3 {[%clk 0:01:56]}  Qb6 {[%clk 0:02:12]} 21. Qxb6 {[%clk 0:01:42]}  Nxb6 {[%clk 0:02:13]} 22. Nd3 {[%clk 0:01:42]}  Rfd8 {[%clk 0:02:06]} 23. Be2 {[%clk 0:01:34]}  Rac8 {[%clk 0:02:02]} 24. Nxe5 {[%clk 0:01:30]}  Rxd1+ {[%clk 0:01:43]} 25. Rxd1 {[%clk 0:01:30]}  f6 {[%clk 0:01:31]} 26. gxf6 {[%clk 0:01:29]}  gxf6 {[%clk 0:01:32]} 27. Nd3 {[%clk 0:01:21]}  Nd5 {[%clk 0:01:25]} 28. f4 {[%clk 0:01:13]}  Ne3 {[%clk 0:01:11]} 29. Rc1 {[%clk 0:01:12]}  Bf5 {[%clk 0:00:58]} 30. Ng3 {[%clk 0:01:09]}  Bg6 {[%clk 0:00:50]} 31. f5 {[%clk 0:01:09]}  Bf7 {[%clk 0:00:38]} 32. h5 {[%clk 0:00:45]}  Kg7 {[%clk 0:00:19]} 33. Bf3 {[%clk 0:00:43]}  Kh6 {[%clk 0:00:16]} 34. c3 {[%clk 0:00:37]}  bxc3 {[%clk 0:00:15]} 35. Rxc3 {[%clk 0:00:36]}  Rxc3 {[%clk 0:00:13]} 36. bxc3 {[%clk 0:00:36]}  Bd6 {[%clk 0:00:08]} 37. Ne4 {[%clk 0:00:35]}  Be5 {[%clk 0:00:08]} 38. Nxe5 {[%clk 0:00:34]}  fxe5 {[%clk 0:00:08]} 39. Ng3 {[%clk 0:00:25]}  Kg5 {[%clk 0:00:07]} 40. Kc1 {[%clk 0:00:16]}  Kf4 {[%clk 0:00:07]} 41. Ne4 {[%clk 0:00:11]}  Bxa2 {[%clk 0:00:05]} 42. Bh1 {[%clk 0:00:09]}  Nxf5 {[%clk 0:00:05]} 43. Kb2 {[%clk 0:00:07]}  Bd5 {[%clk 0:00:05]} 44. Ka3 {[%clk 0:00:04]}  Bxe4 {[%clk 0:00:05]} 45. Bxe4 {[%clk 0:00:02]}  Kxe4 {[%clk 0:00:06]} 46. Kxa4 {[%clk 0:00:02]}  Kd5 {[%clk 0:00:06]} 47. Kb4 {[%clk 0:00:02]}  e4 {[%clk 0:00:06]} 48. c4+ {[%clk 0:00:02]}  Kc6 {[%clk 0:00:06]} 49. c5 {[%clk 0:00:02]}  h6 {[%clk 0:00:04]} 50. Kc4 {[%clk 0:00:02]}  e3 {[%clk 0:00:05]} 51. Kd3 {[%clk 0:00:02]}  Kxc5 {[%clk 0:00:04]} 52. Ke2 {[%clk 0:00:02]}  Kd4 {[%clk 0:00:05]} 53. Kf3 {[%clk 0:00:01]}  Kd3 {[%clk 0:00:05]} 54. Kf4 {[%clk 0:00:02]}  e2 {[%clk 0:00:05]} 55. Kxf5 {[%clk 0:00:03]}  e1=Q {[%clk 0:00:06]} 56. Kg6 {[%clk 0:00:03]}  Qg3+ {[%clk 0:00:06]} 57. Kxh6 {[%clk 0:00:03]}  Ke4 {[%clk 0:00:07]} 58. Kh7 {[%clk 0:00:04]}  Kf5 {[%clk 0:00:07]} 59. h6 {[%clk 0:00:04]}  Kf6 {[%clk 0:00:08]} 60. Kh8 {[%clk 0:00:04]}  Kf7 {[%clk 0:00:08]} 61. Kh7 {[%clk 0:00:03]}  Qg8# {[%clk 0:00:08]} 0-1


[Site "https://www.chess.com"]

[Event "Titled Tuesday Blitz October 31 Early 2023"]
[White "Todev, Simeon"]
[Black "Fernandez Hernandez, Gerardo"]
[WhiteFideId "2925133"]
[BlackFideId "2207400"]
[WhiteElo "2361"]
[BlackElo "2149"]
[Result "1-0"]
[Round "5"]
[TimeControl "180+1"]
[Date "2023.10.31"]
[WhiteClock "0:01:30"]
[BlackClock "0:00:24"]
[Board "172"]

1. e4 {[%clk 0:02:37]}  e6 {[%clk 0:02:58]} 2. Nc3 {[%clk 0:02:35]}  d5 {[%clk 0:02:58]} 3. exd5 {[%clk 0:02:36]}  exd5 {[%clk 0:02:59]} 4. Nf3 {[%clk 0:02:30]}  Nf6 {[%clk 0:02:53]} 5. d4 {[%clk 0:02:29]}  Bb4 {[%clk 0:02:52]} 6. Bd3 {[%clk 0:02:28]}  Bg4 {[%clk 0:02:46]} 7. O-O {[%clk 0:02:29]}  O-O {[%clk 0:02:45]} 8. Bg5 {[%clk 0:02:29]}  Bxc3 {[%clk 0:02:44]} 9. bxc3 {[%clk 0:02:28]}  Qd6 {[%clk 0:02:33]} 10. h3 {[%clk 0:02:26]}  Bh5 {[%clk 0:02:31]} 11. Re1 {[%clk 0:02:23]}  Nbd7 {[%clk 0:02:24]} 12. g4 {[%clk 0:02:16]}  Bg6 {[%clk 0:02:23]} 13. Ne5 {[%clk 0:02:14]}  Bxd3 {[%clk 0:02:04]} 14. Qxd3 {[%clk 0:01:59]}  c6 {[%clk 0:01:45]} 15. Qf5 {[%clk 0:01:49]}  g6 {[%clk 0:01:28]} 16. Qf4 {[%clk 0:01:41]}  Rfe8 {[%clk 0:00:52]} 17. Nxd7 {[%clk 0:01:32]}  Qxf4 {[%clk 0:00:45]} 18. Nxf6+ {[%clk 0:01:32]}  Kg7 {[%clk 0:00:28]} 19. Nxe8+ {[%clk 0:01:30]}  Rxe8 {[%clk 0:00:24]} 20. Bxf4 {[%clk 0:01:30]} 1-0


[Site "https://www.chess.com"]

[Event "Titled Tuesday Blitz October 31 Early 2023"]
[White "Pavlidou, Ekaterini"]
[Black "Feliz Dotel, Dewar Bienvenido"]
[WhiteFideId "4213262"]
[BlackFideId "6402801"]
[WhiteElo "2340"]
[BlackElo "2127"]
[Result "0-1"]
[Round "5"]
[TimeControl "180+1"]
[Date "2023.10.31"]
[WhiteClock "0:00:03"]
[BlackClock "0:00:12"]
[Board "173"]

1. d4 {[%clk 0:01:47]}  Nf6 {[%clk 0:02:58]} 2. c4 {[%clk 0:01:46]}  e6 {[%clk 0:02:58]} 3. Nc3 {[%clk 0:01:46]}  d5 {[%clk 0:02:59]} 4. cxd5 {[%clk 0:01:46]}  Nxd5 {[%clk 0:02:58]} 5. e4 {[%clk 0:01:45]}  Nxc3 {[%clk 0:02:58]} 6. bxc3 {[%clk 0:01:45]}  c5 {[%clk 0:02:59]} 7. Rb1 {[%clk 0:01:44]}  cxd4 {[%clk 0:02:59]} 8. cxd4 {[%clk 0:01:44]}  Qa5+ {[%clk 0:02:56]} 9. Qd2 {[%clk 0:01:41]}  Qc7 {[%clk 0:02:40]} 10. Bb5+ {[%clk 0:01:35]}  Bd7 {[%clk 0:02:38]} 11. a4 {[%clk 0:01:32]}  a6 {[%clk 0:02:33]} 12. Bxd7+ {[%clk 0:01:30]}  Nxd7 {[%clk 0:02:34]} 13. a5 {[%clk 0:01:27]}  Be7 {[%clk 0:02:27]} 14. Ne2 {[%clk 0:01:26]}  O-O {[%clk 0:02:26]} 15. O-O {[%clk 0:01:26]}  Rfd8 {[%clk 0:02:26]} 16. Bb2 {[%clk 0:01:23]}  Nf6 {[%clk 0:02:23]} 17. f3 {[%clk 0:01:21]}  b5 {[%clk 0:02:14]} 18. Rfc1 {[%clk 0:01:17]}  Qd7 {[%clk 0:02:02]} 19. Rc2 {[%clk 0:01:04]}  Rac8 {[%clk 0:02:02]} 20. Rbc1 {[%clk 0:01:04]}  Rxc2 {[%clk 0:02:02]} 21. Rxc2 {[%clk 0:00:57]}  Rc8 {[%clk 0:02:01]} 22. Nc1 {[%clk 0:00:54]}  h6 {[%clk 0:01:55]} 23. Nb3 {[%clk 0:00:52]}  Rxc2 {[%clk 0:01:53]} 24. Qxc2 {[%clk 0:00:52]}  Bb4 {[%clk 0:01:52]} 25. Kf2 {[%clk 0:00:32]}  Ne8 {[%clk 0:01:40]} 26. Nc5 {[%clk 0:00:30]}  Qc8 {[%clk 0:01:32]} 27. g3 {[%clk 0:00:20]}  Nd6 {[%clk 0:01:27]} 28. Bc1 {[%clk 0:00:20]}  Nc4 {[%clk 0:01:21]} 29. Nb3 {[%clk 0:00:19]}  Qd8 {[%clk 0:01:19]} 30. Bf4 {[%clk 0:00:17]}  Bxa5 {[%clk 0:01:16]} 31. Nxa5 {[%clk 0:00:17]}  Qxa5 {[%clk 0:01:14]} 32. d5 {[%clk 0:00:18]}  Qb6+ {[%clk 0:01:12]} 33. Kg2 {[%clk 0:00:17]}  exd5 {[%clk 0:01:11]} 34. exd5 {[%clk 0:00:18]}  Qd4 {[%clk 0:01:11]} 35. Qe2 {[%clk 0:00:16]}  Qxd5 {[%clk 0:01:09]} 36. Qe8+ {[%clk 0:00:16]}  Kh7 {[%clk 0:01:09]} 37. Qe2 {[%clk 0:00:15]}  g6 {[%clk 0:01:01]} 38. Bc1 {[%clk 0:00:15]}  Qe5 {[%clk 0:00:58]} 39. Qc2 {[%clk 0:00:14]}  Ne3+ {[%clk 0:00:36]} 40. Bxe3 {[%clk 0:00:14]}  Qxe3 {[%clk 0:00:37]} 41. Qc6 {[%clk 0:00:14]}  Qe6 {[%clk 0:00:37]} 42. Qb7 {[%clk 0:00:12]}  h5 {[%clk 0:00:35]} 43. h4 {[%clk 0:00:13]}  Kg7 {[%clk 0:00:34]} 44. Kf2 {[%clk 0:00:11]}  Qf6 {[%clk 0:00:32]} 45. Qb8 {[%clk 0:00:10]}  Qd4+ {[%clk 0:00:29]} 46. Kg2 {[%clk 0:00:10]}  b4 {[%clk 0:00:28]} 47. Qb7 {[%clk 0:00:09]}  Qc3 {[%clk 0:00:25]} 48. Qxa6 {[%clk 0:00:08]}  b3 {[%clk 0:00:25]} 49. Qb5 {[%clk 0:00:07]}  b2 {[%clk 0:00:20]} 50. Kh3 {[%clk 0:00:07]}  Qc8+ {[%clk 0:00:19]} 51. g4 {[%clk 0:00:06]}  Qc3 {[%clk 0:00:19]} 52. gxh5 {[%clk 0:00:05]}  Qxf3+ {[%clk 0:00:18]} 53. Kh2 {[%clk 0:00:06]}  Qf4+ {[%clk 0:00:13]} 54. Kh3 {[%clk 0:00:03]}  Qf5+ {[%clk 0:00:12]} 0-1


[Site "https://www.chess.com"]

[Event "Titled Tuesday Blitz October 31 Early 2023"]
[White "Dishman, Stephen"]
[Black "dontcatchmeifyoucant"]
[WhiteFideId "403024"]
[WhiteElo "2337"]
[BlackElo "2097"]
[Result "1-0"]
[Round "5"]
[TimeControl "180+1"]
[Date "2023.10.31"]
[WhiteClock "0:00:53"]
[BlackClock "0:00:00"]
[Board "175"]

1. c4 {[%clk 0:03:00]}  e5 {[%clk 0:02:56]} 2. g3 {[%clk 0:03:00]}  Nf6 {[%clk 0:02:55]} 3. Bg2 {[%clk 0:03:01]}  d5 {[%clk 0:02:55]} 4. cxd5 {[%clk 0:03:00]}  Nxd5 {[%clk 0:02:56]} 5. Nc3 {[%clk 0:03:00]}  Nb6 {[%clk 0:02:56]} 6. Nf3 {[%clk 0:03:01]}  Nc6 {[%clk 0:02:57]} 7. O-O {[%clk 0:03:01]}  Be7 {[%clk 0:02:58]} 8. d3 {[%clk 0:03:00]}  O-O {[%clk 0:02:58]} 9. Be3 {[%clk 0:03:00]}  f6 {[%clk 0:02:31]} 10. a3 {[%clk 0:02:56]}  Nd4 {[%clk 0:02:28]} 11. b4 {[%clk 0:02:49]}  c6 {[%clk 0:01:54]} 12. Rb1 {[%clk 0:02:30]}  Bg4 {[%clk 0:01:47]} 13. Nd2 {[%clk 0:02:24]}  Qd7 {[%clk 0:01:20]} 14. Re1 {[%clk 0:02:24]}  Bh3 {[%clk 0:01:05]} 15. Bh1 {[%clk 0:02:23]}  Kh8 {[%clk 0:01:03]} 16. Nde4 {[%clk 0:02:23]}  Qc7 {[%clk 0:00:38]} 17. Nc5 {[%clk 0:02:13]}  f5 {[%clk 0:00:26]} 18. N3a4 {[%clk 0:01:37]}  Nxa4 {[%clk 0:00:20]} 19. Qxa4 {[%clk 0:01:36]}  Ne6 {[%clk 0:00:21]} 20. Nxe6 {[%clk 0:01:35]}  Qd6 {[%clk 0:00:18]} 21. Nxf8 {[%clk 0:01:35]}  Rxf8 {[%clk 0:00:19]} 22. Bc5 {[%clk 0:01:35]}  Qf6 {[%clk 0:00:13]} 23. Bxe7 {[%clk 0:01:35]}  Qxe7 {[%clk 0:00:14]} 24. Qxa7 {[%clk 0:01:33]}  f4 {[%clk 0:00:14]} 25. Bf3 {[%clk 0:01:32]}  fxg3 {[%clk 0:00:12]} 26. hxg3 {[%clk 0:01:32]}  Qf6 {[%clk 0:00:09]} 27. Qe3 {[%clk 0:01:28]}  Bf5 {[%clk 0:00:05]} 28. b5 {[%clk 0:01:28]}  c5 {[%clk 0:00:05]} 29. Qxc5 {[%clk 0:01:27]}  e4 {[%clk 0:00:04]} 30. dxe4 {[%clk 0:01:26]}  Be6 {[%clk 0:00:04]} 31. e5 {[%clk 0:01:22]}  Qf5 {[%clk 0:00:03]} 32. Rbc1 {[%clk 0:01:11]}  h5 {[%clk 0:00:02]} 33. Qd4 {[%clk 0:01:06]}  Qg5 {[%clk 0:00:01]} 34. Qh4 {[%clk 0:01:05]}  Qh6 {[%clk 0:00:02]} 35. Qe7 {[%clk 0:01:00]}  Rg8 {[%clk 0:00:01]} 36. Rc7 {[%clk 0:00:57]}  g5 {[%clk 0:00:01]} 37. Qf6+ {[%clk 0:00:57]}  Qxf6 {[%clk 0:00:01]} 38. exf6 {[%clk 0:00:58]}  h4 {[%clk 0:00:01]} 39. Re7 {[%clk 0:00:55]}  g4 {[%clk 0:00:01]} 40. Rxe6 {[%clk 0:00:54]}  gxf3 {[%clk 0:00:01]} 41. exf3 {[%clk 0:00:54]}  hxg3 {[%clk 0:00:02]} 42. fxg3 {[%clk 0:00:55]}  Rxg3+ {[%clk 0:00:02]} 43. Kf2 {[%clk 0:00:55]}  Rh3 {[%clk 0:00:02]} 44. Kg2 {[%clk 0:00:54]}  Rh6 {[%clk 0:00:00]} 45. f7 {[%clk 0:00:53]} 1-0


[Site "https://www.chess.com"]

[Event "Titled Tuesday Blitz October 31 Early 2023"]
[White "Viskelis, Darius"]
[Black "ivana_999"]
[WhiteFideId "12800830"]
[WhiteElo "2328"]
[BlackElo "2023"]
[Result "1/2-1/2"]
[Round "5"]
[TimeControl "180+1"]
[Date "2023.10.31"]
[WhiteClock "0:01:07"]
[BlackClock "0:01:17"]
[Board "177"]

1. e4 {[%clk 0:02:57]}  e6 {[%clk 0:03:00]} 2. d4 {[%clk 0:02:53]}  d5 {[%clk 0:03:00]} 3. e5 {[%clk 0:02:53]}  c5 {[%clk 0:03:00]} 4. c3 {[%clk 0:02:53]}  Nc6 {[%clk 0:03:01]} 5. Nf3 {[%clk 0:02:52]}  Qb6 {[%clk 0:03:01]} 6. a3 {[%clk 0:02:52]}  c4 {[%clk 0:02:56]} 7. g3 {[%clk 0:02:44]}  Na5 {[%clk 0:02:53]} 8. Nbd2 {[%clk 0:02:43]}  Bd7 {[%clk 0:02:51]} 9. h4 {[%clk 0:02:41]}  Ne7 {[%clk 0:02:45]} 10. Bh3 {[%clk 0:02:41]}  Nb3 {[%clk 0:02:38]} 11. Nxb3 {[%clk 0:02:40]}  Ba4 {[%clk 0:02:38]} 12. O-O {[%clk 0:02:39]}  Qxb3 {[%clk 0:02:37]} 13. Qxb3 {[%clk 0:02:36]}  Bxb3 {[%clk 0:02:38]} 14. Bf4 {[%clk 0:02:33]}  Bc2 {[%clk 0:02:35]} 15. h5 {[%clk 0:02:21]}  Bf5 {[%clk 0:02:34]} 16. g4 {[%clk 0:02:20]}  Be4 {[%clk 0:02:34]} 17. Nd2 {[%clk 0:02:19]}  Bc2 {[%clk 0:02:31]} 18. Rac1 {[%clk 0:02:14]}  Ba4 {[%clk 0:02:31]} 19. Bg3 {[%clk 0:02:02]}  g6 {[%clk 0:02:23]} 20. f4 {[%clk 0:01:35]}  gxh5 {[%clk 0:01:54]} 21. gxh5 {[%clk 0:01:36]}  Rg8 {[%clk 0:01:54]} 22. Kh2 {[%clk 0:01:37]}  Nf5 {[%clk 0:01:48]} 23. Bxf5 {[%clk 0:01:35]}  exf5 {[%clk 0:01:49]} 24. Rg1 {[%clk 0:01:32]}  Be7 {[%clk 0:01:48]} 25. Nf1 {[%clk 0:01:32]}  Bd7 {[%clk 0:01:46]} 26. Ne3 {[%clk 0:01:31]}  Be6 {[%clk 0:01:44]} 27. Kh3 {[%clk 0:01:32]}  O-O-O {[%clk 0:01:42]} 28. Bh4 {[%clk 0:01:32]}  Bxh4 {[%clk 0:01:41]} 29. Kxh4 {[%clk 0:01:33]}  h6 {[%clk 0:01:37]} 30. Kh3 {[%clk 0:01:19]}  b5 {[%clk 0:01:34]} 31. Kh2 {[%clk 0:01:19]}  a5 {[%clk 0:01:31]} 32. Rxg8 {[%clk 0:01:18]}  Rxg8 {[%clk 0:01:31]} 33. Rg1 {[%clk 0:01:19]}  Rxg1 {[%clk 0:01:31]} 34. Kxg1 {[%clk 0:01:20]}  Kd7 {[%clk 0:01:27]} 35. Kf2 {[%clk 0:01:15]}  Kc6 {[%clk 0:01:27]} 36. Nc2 {[%clk 0:01:11]}  Kd7 {[%clk 0:01:22]} 37. Kg3 {[%clk 0:01:11]}  Ke7 {[%clk 0:01:20]} 38. Kh4 {[%clk 0:01:10]}  Kd7 {[%clk 0:01:17]} 39. Kg3 {[%clk 0:01:09]}  Kc6 {[%clk 0:01:17]} 40. Kh4 {[%clk 0:01:08]}  Kd7 {[%clk 0:01:17]} 41. Kg3 {[%clk 0:01:07]} 1/2-1/2


[Site "https://www.chess.com"]

[Event "Titled Tuesday Blitz October 31 Early 2023"]
[White "Cardozo Munar, Carlos Eduardo"]
[Black "Phillips, Rene"]
[WhiteFideId "4409477"]
[BlackFideId "2056275"]
[WhiteElo "2265"]
[BlackElo "2005"]
[Result "0-1"]
[Round "5"]
[TimeControl "180+1"]
[Date "2023.10.31"]
[WhiteClock "0:00:08"]
[BlackClock "0:00:29"]
[Board "178"]

1. d4 {[%clk 0:03:00]}  Nc6 {[%clk 0:02:57]} 2. c3 {[%clk 0:03:00]}  d5 {[%clk 0:02:56]} 3. Nf3 {[%clk 0:03:00]}  Bg4 {[%clk 0:02:55]} 4. Bf4 {[%clk 0:03:00]}  Bxf3 {[%clk 0:02:53]} 5. exf3 {[%clk 0:03:00]}  e6 {[%clk 0:02:53]} 6. Bd3 {[%clk 0:03:01]}  Nf6 {[%clk 0:02:53]} 7. O-O {[%clk 0:03:01]}  Bd6 {[%clk 0:02:53]} 8. Bg5 {[%clk 0:03:01]}  h6 {[%clk 0:02:53]} 9. Bh4 {[%clk 0:03:01]}  g5 {[%clk 0:02:42]} 10. Bg3 {[%clk 0:02:47]}  Bxg3 {[%clk 0:02:42]} 11. fxg3 {[%clk 0:02:47]}  Qd6 {[%clk 0:02:41]} 12. Re1 {[%clk 0:02:48]}  O-O-O {[%clk 0:02:40]} 13. Qa4 {[%clk 0:02:45]}  Kb8 {[%clk 0:02:37]} 14. Na3 {[%clk 0:02:30]}  a6 {[%clk 0:02:27]} 15. b4 {[%clk 0:02:22]}  Nd7 {[%clk 0:02:25]} 16. b5 {[%clk 0:02:19]}  Nb6 {[%clk 0:02:24]} 17. Qc2 {[%clk 0:02:18]}  Qxa3 {[%clk 0:02:18]} 18. bxc6 {[%clk 0:02:17]}  bxc6 {[%clk 0:02:19]} 19. Rab1 {[%clk 0:02:11]}  Ka7 {[%clk 0:02:18]} 20. Rb3 {[%clk 0:02:09]}  Qa4 {[%clk 0:02:16]} 21. Reb1 {[%clk 0:02:07]}  Rb8 {[%clk 0:02:12]} 22. Qc1 {[%clk 0:02:07]}  Nc4 {[%clk 0:02:08]} 23. Kf2 {[%clk 0:01:33]}  Rb6 {[%clk 0:02:07]} 24. Rb4 {[%clk 0:01:30]}  Qxa2+ {[%clk 0:02:01]} 25. Kg1 {[%clk 0:01:22]}  Rhb8 {[%clk 0:01:56]} 26. Ra1 {[%clk 0:01:18]}  Qd2 {[%clk 0:01:52]} 27. Bxc4 {[%clk 0:00:56]}  Qxc1+ {[%clk 0:01:50]} 28. Rxc1 {[%clk 0:00:57]}  dxc4 {[%clk 0:01:42]} 29. Rxc4 {[%clk 0:00:57]}  Kb7 {[%clk 0:01:33]} 30. h4 {[%clk 0:00:45]}  Rb2 {[%clk 0:01:27]} 31. Rc5 {[%clk 0:00:42]}  Rb5 {[%clk 0:01:23]} 32. Rc4 {[%clk 0:00:35]}  Rd8 {[%clk 0:01:18]} 33. Ra1 {[%clk 0:00:34]}  a5 {[%clk 0:01:16]} 34. Kf2 {[%clk 0:00:33]}  e5 {[%clk 0:01:11]} 35. Ke3 {[%clk 0:00:30]}  f6 {[%clk 0:01:09]} 36. hxg5 {[%clk 0:00:30]}  hxg5 {[%clk 0:01:08]} 37. g4 {[%clk 0:00:30]}  exd4+ {[%clk 0:01:06]} 38. Rxd4 {[%clk 0:00:30]}  Re8+ {[%clk 0:01:05]} 39. Re4 {[%clk 0:00:28]}  Rd8 {[%clk 0:01:03]} 40. Ra2 {[%clk 0:00:22]}  Kb6 {[%clk 0:00:59]} 41. Re6 {[%clk 0:00:21]}  Rd6 {[%clk 0:00:59]} 42. Re4 {[%clk 0:00:16]}  Rb3 {[%clk 0:00:58]} 43. Rc2 {[%clk 0:00:16]}  Rb1 {[%clk 0:00:58]} 44. g3 {[%clk 0:00:16]}  Re1+ {[%clk 0:00:56]} 45. Kf2 {[%clk 0:00:16]}  Rxe4 {[%clk 0:00:55]} 46. fxe4 {[%clk 0:00:16]}  Re6 {[%clk 0:00:53]} 47. Ke3 {[%clk 0:00:17]}  Kb5 {[%clk 0:00:53]} 48. Kd3 {[%clk 0:00:17]}  c5 {[%clk 0:00:53]} 49. c4+ {[%clk 0:00:17]}  Kc6 {[%clk 0:00:52]} 50. Rf2 {[%clk 0:00:17]}  Rd6+ {[%clk 0:00:52]} 51. Kc3 {[%clk 0:00:17]}  Re6 {[%clk 0:00:50]} 52. Kb3 {[%clk 0:00:17]}  Kb6 {[%clk 0:00:49]} 53. Rf5 {[%clk 0:00:15]}  c6 {[%clk 0:00:49]} 54. Kc3 {[%clk 0:00:10]}  Rxe4 {[%clk 0:00:49]} 55. Rxf6 {[%clk 0:00:11]}  Rxg4 {[%clk 0:00:48]} 56. Rf3 {[%clk 0:00:11]}  a4 {[%clk 0:00:47]} 57. Kd3 {[%clk 0:00:11]}  Rd4+ {[%clk 0:00:46]} 58. Kc3 {[%clk 0:00:11]}  Rg4 {[%clk 0:00:47]} 59. Kd3 {[%clk 0:00:11]}  a3 {[%clk 0:00:47]} 60. Kc3 {[%clk 0:00:11]}  a2 {[%clk 0:00:46]} 61. Kb2 {[%clk 0:00:11]}  Rxc4 {[%clk 0:00:45]} 62. Kxa2 {[%clk 0:00:12]}  Rb4 {[%clk 0:00:45]} 63. Ka3 {[%clk 0:00:12]}  g4 {[%clk 0:00:45]} 64. Rc3 {[%clk 0:00:10]}  Kb5 {[%clk 0:00:45]} 65. Re3 {[%clk 0:00:10]}  Rb1 {[%clk 0:00:42]} 66. Re4 {[%clk 0:00:09]}  Rb4 {[%clk 0:00:40]} 67. Re3 {[%clk 0:00:09]}  Rd4 {[%clk 0:00:40]} 68. Re8 {[%clk 0:00:09]}  c4 {[%clk 0:00:40]} 69. Rb8+ {[%clk 0:00:09]}  Kc5 {[%clk 0:00:40]} 70. Ka4 {[%clk 0:00:07]}  Rd3 {[%clk 0:00:41]} 71. Rf8 {[%clk 0:00:06]}  Rxg3 {[%clk 0:00:40]} 72. Rf5+ {[%clk 0:00:07]}  Kd4 {[%clk 0:00:40]} 73. Rf4+ {[%clk 0:00:06]}  Kc3 {[%clk 0:00:39]} 74. Rf6 {[%clk 0:00:06]}  Rg1 {[%clk 0:00:39]} 75. Rxc6 {[%clk 0:00:06]}  g3 {[%clk 0:00:39]} 76. Kb5 {[%clk 0:00:07]}  Kd3 {[%clk 0:00:36]} 77. Rxc4 {[%clk 0:00:08]}  Rb1+ {[%clk 0:00:36]} 78. Kc5 {[%clk 0:00:08]}  g2 {[%clk 0:00:32]} 79. Rd4+ {[%clk 0:00:09]}  Ke3 {[%clk 0:00:31]} 80. Rd5 {[%clk 0:00:08]}  g1=Q {[%clk 0:00:31]} 81. Kd6 {[%clk 0:00:08]}  Qg6+ {[%clk 0:00:29]} 82. Kc5 {[%clk 0:00:09]}  Rc1+ {[%clk 0:00:30]} 83. Kb4 {[%clk 0:00:09]}  Qb6+ {[%clk 0:00:30]} 84. Rb5 {[%clk 0:00:07]}  Rb1+ {[%clk 0:00:30]} 85. Ka3 {[%clk 0:00:07]}  Qxb5 {[%clk 0:00:30]} 86. Ka2 {[%clk 0:00:08]}  Qb2# {[%clk 0:00:29]} 0-1


[Site "https://www.chess.com"]